fUST/lending_fUST_20260114
["ID","MTS","AMOUNT","RATE_DAILY","PERIOD"]
[401794018,1768377056497,-162.0,0.00024436,3]
[401794019,1768377056506,-1300.0,0.00024436,2]
[401794021,1768377056515,-2916.3971575,0.00024442,2]
[401794023,1768377056524,-1300.0,0.00024443,2]
[401794025,1768377056534,-1300.0,0.0002445,2]
[401794027,1768377056543,-728.0,0.00024458,3]
[401794029,1768377056552,-728.0,0.00024458,3]
[401794030,1768377056561,-728.0,0.00024458,3]
[401794032,1768377056570,-500.0,0.00024463,2]
[401794034,1768377056579,-901.46550708,0.00024482,2]
[401794036,1768377056590,-2113.56,0.000245,7]
[401794038,1768377056599,-2116.0,0.000245,2]
[401794039,1768377056608,-500.0,0.00024507,2]
[401794041,1768377056618,-1300.0,0.00024541,2]
[401794043,1768377056630,-1300.0,0.00024552,2]
[401794045,1768377056639,-900.0,0.00024658,2]
[401794046,1768377056647,-380.0,0.00024658,2]
[401794048,1768377056656,-200.0,0.00024658,2]
[401794050,1768377056666,-500.0,0.00024658,2]
[401794052,1768377056675,-500.0,0.00024675,2]
[401794054,1768377056685,-160.0,0.00024677,5]
[401794055,1768377056694,-1000.0,0.00024699,10]
[401794057,1768377056704,-1000.0,0.00024699,10]
[401794059,1768377056713,-1000.0,0.00024699,10]
[401794061,1768377056722,-1300.0,0.00024735,2]
[401794062,1768377056731,-190.0,0.00024743,2]
[401794064,1768377056740,-500.0,0.00024748,2]
[401794066,1768377056749,-1258.927975,0.0002476,5]
[401794068,1768377056758,-500.0,0.0002476,2]
[401794069,1768377056767,-1000.0,0.0002478,5]
[401794071,1768377056777,-500.0,0.00024788,2]
[401794073,1768377056786,-500.0,0.00024795,2]
[401794075,1768377056795,-500.0,0.00024799,2]
[401794077,1768377056804,-1000.0,0.000248,5]
[401794079,1768377056814,-604.60519035,0.000248,2]
[401794080,1768377056823,-800.0,0.00024801,2]
[401794082,1768377056832,-500.0,0.00024816,2]
[401794084,1768377056841,-1300.0,0.00024818,2]
[401794086,1768377056851,-1000.0,0.0002482,5]
[401794087,1768377056859,-1000.0,0.0002484,5]
[401794089,1768377056868,-500.0,0.00024844,2]
[401794091,1768377056876,-491.12165105,0.00024859,30]
[401794093,1768377056884,-1000.0,0.0002486,5]
[401794094,1768377056893,-629.0,0.00024861,2]
[401794096,1768377056901,-1367.0,0.00024861,2]
[401794098,1768377056910,-2147.0,0.00024861,2]
[401794100,1768377056918,-151.0,0.00024861,7]
[401794101,1768377056927,-151.0,0.00024861,7]
[401794103,1768377056936,-151.0,0.00024861,2]
[401794105,1768377056946,-287.20957,0.00024861,2]
[401794107,1768377056955,-2916.3971575,0.00024873,2]
[401794109,1768377056965,-1000.0,0.0002488,5]
[401794116,1768377056974,-1300.0,0.00024899,2]
[401794118,1768377057051,-151.0,0.000249,7]
[401794120,1768377057060,-151.0,0.000249,7]
[401794122,1768377057069,-151.0,0.000249,7]
[401794123,1768377057079,-151.0,0.000249,7]
[401794125,1768377057088,-151.0,0.000249,7]
[401794127,1768377057097,-151.0,0.000249,7]
[401794129,1768377057106,-151.0,0.000249,7]
[401794131,1768377057115,-151.0,0.000249,7]
[401794132,1768377057125,-151.0,0.000249,7]
[401794134,1768377057134,-151.0,0.000249,7]
[401794136,1768377057142,-256.419817,0.000249,7]
[401794138,1768377057152,-151.0,0.000249,7]
[401794140,1768377057161,-151.0,0.000249,7]
[401794142,1768377057171,-151.0,0.000249,7]
[401794143,1768377057200,-151.0,0.000249,7]
[401794145,1768377057209,-151.0,0.000249,7]
[401794147,1768377057219,-151.0,0.000249,7]
[401794148,1768377057228,-151.0,0.000249,7]
[401794150,1768377057237,-151.0,0.000249,7]
[401794152,1768377057247,-151.0,0.000249,7]
[401794154,1768377057256,-151.0,0.000249,7]
[401794156,1768377057265,-151.0,0.000249,7]
[401794157,1768377057274,-151.0,0.000249,7]
[401794159,1768377057283,-1000.0,0.000249,5]
[401794161,1768377057292,-172.062842,0.000249,7]
[401794163,1768377057302,-151.0,0.000249,7]
[401794165,1768377057311,-151.0,0.000249,7]
[401794166,1768377057320,-174.038823,0.000249,7]
[401794168,1768377057329,-174.038823,0.000249,7]
[401794170,1768377057344,-174.038823,0.000249,7]
[401794172,1768377057359,-174.038823,0.000249,7]
[401794174,1768377057369,-216.477356,0.000249,7]
[401794176,1768377057381,-216.477356,0.000249,7]
[401794178,1768377057390,-216.477356,0.000249,7]
[401794179,1768377057400,-216.477356,0.000249,7]
[401794181,1768377057410,-382.165336,0.000249,7]
[401794183,1768377057419,-382.165336,0.000249,7]
[401794185,1768377057428,-382.165336,0.000249,7]
[401794186,1768377057439,-382.165336,0.000249,7]
[401794188,1768377057448,-886.569727,0.000249,7]
[401794190,1768377057458,-886.569727,0.000249,7]
[401794192,1768377057468,-886.569727,0.000249,7]
[401794194,1768377057477,-886.569727,0.000249,7]
[401794196,1768377057486,-151.0,0.000249,7]
[401794197,1768377057495,-174.762568,0.000249,7]
[401794199,1768377057504,-879.438014,0.000249,7]
[401794201,1768377057514,-879.438014,0.000249,7]
[401794203,1768377057523,-879.438014,0.000249,7]
[401794205,1768377057532,-839.619726,0.000249,7]
[401794207,1768377057541,-653058.728757,0.000249,2]
[401794208,1768377057551,-839.619726,0.000249,7]
[401794210,1768377057560,-839.619726,0.000249,7]
[401794212,1768377057569,-839.619726,0.000249,7]
[401794214,1768377057579,-151.0,0.000249,7]
[401794216,1768377057589,-151.0,0.000249,7]
[401794218,1768377057598,-151.0,0.000249,7]
[401794220,1768377057618,-151.0,0.000249,7]
[401794221,1768377057632,-151.0,0.000249,7]
[401794223,1768377057641,-174.464097,0.000249,7]
[401794225,1768377057651,-151.0,0.000249,7]
[401794227,1768377057660,-151.0,0.000249,7]
[401794229,1768377057670,-406.316369,0.000249,7]
[401794230,1768377057679,-406.316369,0.000249,7]
[401794232,1768377057688,-406.316369,0.000249,7]
[401794234,1768377057700,-151.3487,0.000249,7]
[401794236,1768377057709,-406.316369,0.000249,7]
[401794238,1768377057718,-151.3487,0.000249,7]
[401794240,1768377057730,-151.3487,0.000249,7]
[401794242,1768377057746,-151.0,0.000249,7]
[401794243,1768377057756,-151.3487,0.000249,7]
[401794245,1768377057767,-633.503416,0.000249,7]
[401794247,1768377057777,-633.503416,0.000249,7]
[401794249,1768377057787,-179.049299,0.000249,7]
[401794251,1768377057798,-633.503416,0.000249,7]
[401794253,1768377057807,-179.049299,0.000249,7]
[401794255,1768377057816,-633.503416,0.000249,7]
[401794256,1768377057825,-179.049299,0.000249,7]
[401794258,1768377057834,-179.049299,0.000249,7]
[401794260,1768377057843,-151.0,0.000249,7]
[401794262,1768377057852,-151.0,0.000249,7]
[401794264,1768377057860,-151.0,0.000249,7]
[401794266,1768377057870,-151.0,0.000249,7]
[401794267,1768377057879,-461.991157,0.000249,7]
[401794269,1768377057888,-151.0,0.000249,7]
[401794271,1768377057897,-461.991157,0.000249,7]
[401794273,1768377057907,-151.0,0.000249,7]
[401794275,1768377057917,-461.991157,0.000249,7]
[401794277,1768377057926,-151.0,0.000249,7]
[401794279,1768377057935,-461.991157,0.000249,7]
[401794281,1768377057944,-2025.449831,0.000249,7]
[401794282,1768377057953,-151.0,0.000249,7]
[401794284,1768377057963,-2025.449831,0.000249,7]
[401794286,1768377057972,-2297.615063,0.000249,7]
[401794288,1768377057982,-151.0,0.000249,7]
[401794290,1768377057991,-2025.449831,0.000249,7]
[401794292,1768377058001,-2297.615063,0.000249,7]
[401794294,1768377058010,-151.0,0.000249,7]
[401794296,1768377058020,-2025.449831,0.000249,7]
[401794298,1768377058029,-151.0,0.000249,7]
[401794300,1768377058039,-2297.615063,0.000249,7]
[401794301,1768377058048,-151.0,0.000249,7]
[401794303,1768377058058,-151.0,0.000249,7]
[401794305,1768377058067,-2297.615063,0.000249,7]
[401794307,1768377058077,-237.361203,0.000249,7]
[401794309,1768377058086,-237.361203,0.000249,7]
[401794311,1768377058095,-237.361203,0.000249,7]
[401794313,1768377058105,-237.361203,0.000249,7]
[401794315,1768377058114,-151.0,0.000249,7]
[401794316,1768377058123,-279.449263,0.000249,7]
[401794318,1768377058132,-151.0,0.000249,2]
[401794320,1768377058142,-218.89401488,0.00024904,14]
[401794322,1768377058151,-1000.0,0.0002492,5]
[401794324,1768377058161,-500.0,0.00024932,2]
[401794326,1768377058170,-1000.0,0.0002494,5]
[401794328,1768377058179,-782.85006975,0.00024949,2]
[401794330,1768377058188,-1300.0,0.00024958,2]
[401794331,1768377058197,-1000.0,0.0002496,5]
[401794339,1768377058273,-1000.0,0.0002498,5]
[401794341,1768377058283,-1209.821329,0.0002498,5]
[401794343,1768377058292,-267.88,0.00025,7]
[401794345,1768377058302,-253.24,0.00025,7]
[401794347,1768377058311,-200.0,0.00025,17]
[401794349,1768377058320,-2116.0,0.00025,2]
[401794350,1768377058329,-1000.0,0.00025,5]
[401794352,1768377058338,-1000.0,0.00025,5]
[401794354,1768377058348,-1019.0,0.00025,2]
[401794356,1768377058360,-2000.0,0.00025,7]
[401794358,1768377058369,-1300.0,0.00025028,7]
[401794360,1768377058378,-160.0,0.00025068,6]
[401794362,1768377058388,-500.0,0.00025069,2]
[401794364,1768377058397,-1300.0,0.00025092,7]
[401794366,1768377058407,-2916.3971575,0.00025092,2]
[401794367,1768377058417,-1827.91578915,0.00025131,7]
[401794369,1768377058426,-250.0,0.00025205,2]
[401794371,1768377058435,-1186.74681137,0.00025205,2]
[401794373,1768377058444,-500.0,0.00025206,2]
[401794375,1768377058453,-800.0,0.00025219,2]
[401794376,1768377058462,-40340.44,0.000253,2]
[401794378,1768377058471,-2916.3971575,0.000253,2]
[401794380,1768377058481,-693.510903,0.00025342,2]
[401794382,1768377058490,-500.0,0.00025343,2]
[401794384,1768377058499,-728.0,0.00025418,3]
[401794386,1768377058508,-1060.1,0.00025429,2]
[401794387,1768377058518,-160.0,0.0002546,7]
[401794389,1768377058528,-500.0,0.0002548,2]
[401794391,1768377058537,-4046.54,0.000255,14]
[401794393,1768377058546,-2116.0,0.000255,2]
[401794395,1768377058555,-491.02165105,0.00025507,30]
[401794397,1768377058567,-500.0,0.00025617,2]
[401794399,1768377058577,-2916.3971575,0.0002567,2]
[401794400,1768377058586,-2113.56,0.000257,7]
[401794402,1768377058595,-350.0,0.00025753,2]
[401794404,1768377058605,-500.0,0.00025754,2]
[401794406,1768377058618,-2000.07602471,0.00025768,2]
[401794408,1768377058627,-160.0,0.00025851,8]
[401794410,1768377058637,-2916.3971575,0.00025872,2]
[401794412,1768377058647,-500.0,0.00025891,2]
[401794413,1768377058657,-800.0,0.00025893,2]
[401794415,1768377058667,-800.0,0.00025918,2]
[401794417,1768377058675,-300.0,0.00026,20]
[401794419,1768377058687,-2116.0,0.00026,2]
[401794420,1768377058696,-4000.0,0.00026,4]
[401794421,1768377058706,-1019.0,0.00026,2]
[401794422,1768377058715,-2000.0,0.00026,7]
[401794423,1768377058724,-2854.31,0.00026027,2]
[401794424,1768377058733,-500.0,0.00026028,2]
[401794425,1768377058743,-3974.0,0.00026096,2]
[401794426,1768377058752,-500.0,0.00026165,2]
[401794427,1768377058761,-160.0,0.00026243,9]
[401794428,1768377058771,-2916.3971575,0.00026265,2]
[401794429,1768377058784,-1246.416256,0.000263,2]
[401794430,1768377058806,-450.0,0.00026301,2]
[401794431,1768377058823,-500.0,0.00026302,2]
[401794432,1768377058843,-267.88,0.000264,7]
[401794433,1768377058862,-253.24,0.000264,7]
[401794434,1768377058882,-14150.53090947,0.00026421,2]
[401794435,1768377058901,-500.0,0.00026439,2]
[401794436,1768377058918,-800.0,0.00026445,2]
[401794437,1768377058932,-2116.0,0.000265,2]
[401794438,1768377058950,-2916.3971575,0.00026537,2]
[401794439,1768377058969,-1060.1,0.00026552,2]
[401794440,1768377058989,-500.0,0.00026576,2]
[401794441,1768377059003,-160.0,0.00026634,10]
[401794442,1768377059021,-500.0,0.00026713,2]
[401794443,1768377059037,-2916.3971575,0.00026749,2]
[401794445,1768377059054,-5000.0,0.00026768,2]
[401794446,1768377059071,-800.0,0.0002678,2]
[401794448,1768377059086,-40340.44,0.000268,2]
[401794449,1768377059101,-167.76,0.000268,7]
[401794452,1768377059114,-2113.56,0.000268,7]
[401794454,1768377059128,-1000.0,0.000268,2]
[401794457,1768377059143,-550.0,0.00026849,2]
[401794460,1768377059157,-500.0,0.0002685,2]
[401794462,1768377059171,-4046.54,0.000269,14]
[401794465,1768377059185,-800.0,0.00026984,2]
[401794467,1768377059199,-500.0,0.00026987,2]
[401794470,1768377059214,-1019.0,0.00027,2]
[401794472,1768377059228,-2000.0,0.00027,7]
[401794475,1768377059243,-2916.3971575,0.00027024,2]
[401794477,1768377059257,-160.0,0.00027026,11]
[401794480,1768377059272,-195.0,0.00027096,14]
[401794482,1768377059286,-2116.0,0.000271,2]
[401794485,1768377059300,-500.0,0.00027124,2]
[401794487,1768377059314,-2916.3971575,0.00027131,2]
[401794490,1768377059329,-800.0,0.00027133,2]
[401794492,1768377059342,-500.0,0.00027156,7]
[401794495,1768377059356,-1000.0,0.00027168,30]
[401794498,1768377059369,-1000.0,0.00027168,30]
[401794500,1768377059383,-1000.0,0.00027168,30]
[401794503,1768377059398,-715.0,0.00027168,30]
[401794505,1768377059413,-355.01455049,0.00027261,2]
[401794507,1768377059427,-800.0,0.00027282,2]
[401794510,1768377059441,-1000.0,0.000273,2]
[401794513,1768377059454,-180.95703962,0.00027397,3]
[401794515,1768377059468,-650.0,0.00027397,5]
[401794518,1768377059482,-300.0,0.00027397,2]
[401794520,1768377059495,-300.0,0.00027397,2]
[401794523,1768377059509,-300.0,0.00027397,2]
[401794525,1768377059524,-300.0,0.00027397,2]
[401794527,1768377059539,-300.0,0.00027397,2]
[401794530,1768377059557,-300.0,0.00027397,2]
[401794532,1768377059567,-300.0,0.00027397,2]
[401794534,1768377059576,-300.0,0.00027397,2]
[401794536,1768377059586,-300.0,0.00027397,2]
[401794551,1768377059715,-300.0,0.00027397,2]
[401794554,1768377059732,-300.0,0.00027397,2]
[401794556,1768377059745,-300.0,0.00027397,2]
[401794558,1768377059763,-300.0,0.00027397,2]
[401794560,1768377059772,-300.0,0.00027397,2]
[401794562,1768377059781,-300.0,0.00027397,2]
[401794564,1768377059790,-300.0,0.00027397,2]
[401794566,1768377059800,-300.0,0.00027397,2]
[401794568,1768377059809,-300.0,0.00027397,2]
[401794570,1768377059818,-300.0,0.00027397,2]
[401794572,1768377059826,-300.0,0.00027397,2]
[401794574,1768377059836,-300.0,0.00027397,2]
[401794576,1768377059845,-300.0,0.00027397,2]
[401794578,1768377059854,-300.0,0.00027397,2]
[401794580,1768377059863,-300.0,0.00027397,2]
[401794582,1768377059873,-300.0,0.00027397,2]
[401794584,1768377059882,-300.0,0.00027397,2]
[401794585,1768377059891,-300.0,0.00027397,2]
[401794587,1768377059900,-300.0,0.00027397,2]
[401794589,1768377059909,-300.0,0.00027397,2]
[401794591,1768377059918,-300.0,0.00027397,2]
[401794594,1768377059927,-300.0,0.00027397,2]
[401794595,1768377059937,-300.0,0.00027397,2]
[401794598,1768377059946,-300.0,0.00027397,2]
[401794599,1768377059955,-300.0,0.00027397,2]
[401794601,1768377059965,-300.0,0.00027397,2]
[401794603,1768377059974,-300.0,0.00027397,2]
[401794605,1768377059983,-300.0,0.00027397,2]
[401794608,1768377059993,-300.0,0.00027397,2]
[401794609,1768377060002,-300.0,0.00027397,2]
[401794611,1768377060011,-300.0,0.00027397,2]
[401794613,1768377060021,-300.0,0.00027397,2]
[401794615,1768377060031,-151.0,0.00027397,7]
[401794618,1768377060040,-151.0,0.00027397,7]
[401794620,1768377060050,-151.0,0.00027397,7]
[401794622,1768377060059,-151.0,0.00027397,7]
[401794623,1768377060069,-295.309906,0.00027397,7]
[401794626,1768377060078,-156.87039,0.00027397,7]
[401794628,1768377060088,-500.0,0.00027397,5]
[401794630,1768377060098,-157.45506808,0.00027397,5]
[401794631,1768377060107,-160.0,0.00027417,12]
[401794634,1768377060117,-2916.3971575,0.00027426,2]
[401794636,1768377060126,-5000.0,0.00027599,30]
[401794637,1768377060135,-2116.0,0.000276,2]
[401794639,1768377060145,-5000.0,0.0002767,4]
[401794641,1768377060154,-2854.31,0.00027671,4]
[401794643,1768377060164,-1060.1,0.00027676,5]
[401794645,1768377060174,-267.88,0.000277,7]
[401794647,1768377060183,-253.24,0.000277,7]
[401794649,1768377060193,-2916.3971575,0.00027721,2]
[401794651,1768377060203,-5000.0,0.00027768,2]
[401794653,1768377060213,-1000.0,0.000278,2]
[401794655,1768377060223,-160.0,0.00027809,13]
[401794657,1768377060233,-629.0,0.00027861,2]
[401794659,1768377060243,-1367.0,0.00027861,2]
[401794661,1768377060253,-2147.0,0.00027861,2]
[401794663,1768377060263,-10000.0,0.0002787,7]
[401794666,1768377060275,-2113.56,0.000279,7]
[401794668,1768377060286,-6296.92368229,0.00027936,2]
[401794669,1768377060296,-1000.0,0.00027945,5]
[401794671,1768377060306,-750.0,0.00027945,5]
[401794673,1768377060317,-250.0,0.00027945,5]
[401794675,1768377060326,-250.0,0.00027945,5]
[401794677,1768377060336,-24345.2760125,0.00027978,2]
[401794679,1768377060346,-5000.0,0.00027999,3]
[401794681,1768377060356,-5000.0,0.00027999,8]
[401794683,1768377060366,-378.0,0.00028,8]
[401794686,1768377060376,-1019.0,0.00028,2]
[401794687,1768377060385,-1041.66666667,0.00028,30]
[401794689,1768377060395,-2000.0,0.00028,7]
[401794692,1768377060405,-5000.0,0.00028029,14]
[401794693,1768377060414,-2116.0,0.000281,2]
[401794696,1768377060425,-2916.3971575,0.00028154,2]
[401794698,1768377060434,-160.0,0.000282,14]
[401794700,1768377060444,-225.45912281,0.000282,5]
[401794701,1768377060453,-500.0,0.00028252,14]
[401794703,1768377060463,-4046.54,0.000283,14]
[401794706,1768377060473,-1000.0,0.000283,2]
[401794708,1768377060483,-800.0,0.00028338,2]
[401794710,1768377060493,-2916.3971575,0.00028458,2]
[401794712,1768377060503,-850.0,0.00028493,5]
[401794714,1768377060512,-1349.80836073,0.00028493,5]
[401794716,1768377060521,-350.0,0.00028493,5]
[401794718,1768377060531,-350.0,0.00028493,5]
[401794720,1768377060540,-5000.0,0.00028499,7]
[401794722,1768377060549,-40340.44,0.000285,2]
[401794724,1768377060558,-2116.0,0.000286,2]
[401794726,1768377060568,-1019.7751063,0.00028618,5]
[401794728,1768377060578,-549.51335503,0.00028618,5]
[401794730,1768377060587,-194.2006467,0.00028692,30]
[401794732,1768377060596,-194.2006467,0.00028692,30]
[401794734,1768377060605,-194.2006467,0.00028692,30]
[401794736,1768377060615,-376.834513,0.00028692,30]
[401794738,1768377060628,-2916.3971593,0.00028692,2]
[401794740,1768377060637,-5000.0,0.00028759,5]
[401794742,1768377060647,-2198.0534201,0.00028764,5]
[401794744,1768377060656,-5000.0,0.00028766,30]
[401794746,1768377060666,-693.510903,0.00028767,60]
[401794748,1768377060675,-5000.0,0.00028768,2]
[401794750,1768377060685,-5000.0,0.00028799,2]
[401794752,1768377060696,-5000.0,0.00028799,10]
[401794754,1768377060706,-53195.85024719,0.000288,10]
[401794756,1768377060716,-172.62475579,0.000288,7]
[401794758,1768377060725,-1041.66666667,0.000288,10]
[401794760,1768377060735,-153.0,0.000288,7]
[401794762,1768377060744,-153.0,0.000288,7]
[401794764,1768377060754,-153.0,0.000288,7]
[401794766,1768377060763,-153.0,0.000288,7]
[401794768,1768377060772,-153.0,0.000288,7]
[401794770,1768377060782,-153.0,0.000288,7]
[401794772,1768377060791,-153.0,0.000288,7]
[401794774,1768377060799,-153.0,0.000288,7]
[401794776,1768377060809,-276.0,0.000288,7]
[401794778,1768377060818,-166.0,0.000288,7]
[401794779,1768377060827,-347.0,0.000288,7]
[401794781,1768377060836,-166.0,0.000288,7]
[401794784,1768377060845,-247.28328889,0.000288,7]
[401794786,1768377060854,-153.0,0.000288,7]
[401794787,1768377060864,-166.0,0.000288,7]
[401794789,1768377060873,-153.0,0.000288,7]
[401794791,1768377060882,-153.0,0.000288,7]
[401794793,1768377060891,-161.75181872,0.000288,7]
[401794796,1768377060900,-153.0,0.000288,7]
[401794797,1768377060910,-153.0,0.000288,7]
[401794799,1768377060918,-153.0,0.000288,7]
[401794801,1768377060927,-153.0,0.000288,7]
[401794803,1768377060937,-296.31546253,0.000288,7]
[401794805,1768377060946,-164.0,0.000288,7]
[401794807,1768377060956,-164.0,0.000288,7]
[401794809,1768377060967,-164.0,0.000288,7]
[401794811,1768377060976,-164.0,0.000288,7]
[401794813,1768377060986,-225.19176564,0.000288,7]
[401794815,1768377060995,-1000.0,0.000288,2]
[401794817,1768377061004,-1060.1,0.000288,5]
[401794819,1768377061014,-2116.26006047,0.000288,2]
[401794821,1768377061024,-155.06,0.000289,2]
[401794822,1768377061036,-4945.62019523,0.00028911,5]
[401794824,1768377061045,-14150.53090947,0.00028966,2]
[401794826,1768377061054,-890.98895779,0.00029,2]
[401794828,1768377061064,-700.0,0.00029,2]
[401794830,1768377061073,-20000.0,0.00029,7]
[401794832,1768377061082,-20000.0,0.00029,14]
[401794834,1768377061092,-1041.66666667,0.00029,7]
[401794836,1768377061101,-267.88,0.00029,7]
[401794838,1768377061110,-253.24,0.00029,7]
[401794840,1768377061120,-2113.56,0.00029,7]
[401794842,1768377061129,-151.0,0.00029,7]
[401794844,1768377061138,-879.438014,0.00029,7]
[401794845,1768377061148,-879.438014,0.00029,7]
[401794847,1768377061158,-879.438014,0.00029,7]
[401794849,1768377061168,-879.438023,0.00029,7]
[401794851,1768377061179,-839.619726,0.00029,7]
[401794853,1768377061189,-839.619726,0.00029,7]
[401794855,1768377061200,-839.619726,0.00029,7]
[401794857,1768377061210,-839.619727,0.00029,7]
[401794859,1768377061220,-151.0,0.00029,7]
[401794861,1768377061230,-151.0,0.00029,7]
[401794863,1768377061239,-151.0,0.00029,7]
[401794865,1768377061249,-151.0,0.00029,7]
[401794867,1768377061259,-151.0,0.00029,7]
[401794869,1768377061269,-151.0,0.00029,7]
[401794871,1768377061279,-151.0,0.00029,7]
[401794873,1768377061288,-406.316369,0.00029,7]
[401794875,1768377061297,-406.316369,0.00029,7]
[401794877,1768377061306,-406.316369,0.00029,7]
[401794878,1768377061315,-151.3487,0.00029,7]
[401794880,1768377061325,-406.316377,0.00029,7]
[401794882,1768377061334,-151.3487,0.00029,7]
[401794884,1768377061343,-1019.0,0.00029,2]
[401794886,1768377061352,-151.3487,0.00029,7]
[401794888,1768377061362,-151.0,0.00029,7]
[401794890,1768377061372,-151.348703,0.00029,7]
[401794892,1768377061382,-633.503416,0.00029,7]
[401794894,1768377061391,-633.503416,0.00029,7]
[401794896,1768377061401,-179.049299,0.00029,7]
[401794898,1768377061410,-633.503416,0.00029,7]
[401794900,1768377061419,-179.049299,0.00029,7]
[401794902,1768377061428,-633.503418,0.00029,7]
[401794904,1768377061437,-179.049299,0.00029,7]
[401794906,1768377061447,-179.049297,0.00029,7]
[401794908,1768377061456,-151.0,0.00029,7]
[401794910,1768377061466,-161.506342,0.00029,7]
[401794912,1768377061475,-151.0,0.00029,7]
[401794913,1768377061485,-461.991157,0.00029,7]
[401794923,1768377061576,-151.0,0.00029,7]
[401794925,1768377061586,-461.991157,0.00029,7]
[401794928,1768377061599,-461.991157,0.00029,7]
[401794930,1768377061608,-151.0,0.00029,7]
[401794931,1768377061620,-151.0,0.00029,7]
[401794933,1768377061630,-461.991148,0.00029,7]
[401794935,1768377061640,-2025.449831,0.00029,7]
[401794937,1768377061649,-285.163634,0.00029,7]
[401794939,1768377061659,-2025.449831,0.00029,7]
[401794941,1768377061670,-2297.615063,0.00029,7]
[401794943,1768377061679,-151.0,0.00029,7]
[401794945,1768377061689,-2025.449831,0.00029,7]
[401794947,1768377061699,-2297.615063,0.00029,7]
[401794949,1768377061708,-151.0,0.00029,7]
[401794951,1768377061718,-2025.449834,0.00029,7]
[401794953,1768377061727,-151.0,0.00029,7]
[401794955,1768377061736,-2297.615063,0.00029,7]
[401794957,1768377061745,-210.162215,0.00029,7]
[401794958,1768377061754,-2297.615059,0.00029,7]
[401794960,1768377061764,-151.0,0.00029,7]
[401794962,1768377061774,-2000.0,0.00029,7]
[401794964,1768377061783,-237.361203,0.00029,7]
[401794966,1768377061792,-237.361203,0.00029,7]
[401794968,1768377061802,-237.361203,0.00029,7]
[401794970,1768377061811,-237.361205,0.00029,7]
[401794971,1768377061820,-40131.09800633,0.0002902,2]
[401794972,1768377061830,-151.0,0.0002902,7]
[401794973,1768377061839,-151.0,0.0002902,7]
[401794974,1768377061848,-253.611612,0.0002902,7]
[401794975,1768377061857,-300.338557,0.0002902,7]
[401794976,1768377061868,-151.0,0.0002902,7]
[401794977,1768377061877,-189.222608,0.0002902,7]
[401794978,1768377061887,-174.038823,0.0002902,7]
[401794979,1768377061896,-174.038823,0.0002902,7]
[401794980,1768377061907,-174.038823,0.0002902,7]
[401794981,1768377061917,-174.038821,0.0002902,7]
[401794982,1768377061926,-216.477356,0.0002902,7]
[401794983,1768377061935,-151.0,0.0002902,7]
[401794984,1768377061945,-216.477356,0.0002902,7]